bitfinex/quotes_SOLUSD_20250317
["timestamp","ask_amount","ask_price","bid_price","bid_amount"]
[1742242144937,0.0001,129.89,129.88,177.05689602]
[1742242145961,0.0001,129.89,129.88,138.0999]
[1742242147763,0.0001,129.89,129.88,150.70784716]
[1742242149263,0.0001,129.89,129.88,12.60794716]
[1742242149964,0.0001,129.89,129.88,20.30734716]
[1742242150165,0.0001,129.89,129.88,38.95699602]
[1742242151266,0.0001,129.89,129.88,31.25759602]
[1742242151446,0.0001,129.89,129.88,343.25759602]
[1742242152065,0.0001,129.89,129.88,324.60794716]
[1742242152269,0.0001,129.89,129.87,150.73784716]
[1742242156055,0.0001,129.89,129.88,31.25759602]
[1742242158078,0.0001,129.89,129.88,38.95699602]
[1742242158470,0.0001,129.89,129.88,350.95699602]
[1742242159278,0.0001,129.89,129.88,38.95699602]
[1742242159877,0.0001,129.89,129.88,31.25759602]
[1742242160178,0.0001,129.89,129.88,38.95699602]
[1742242160366,0.0001,129.89,129.88,31.25759602]
[1742242160871,0.0001,129.89,129.88,177.05689602]
[1742242161680,0.0001,129.89,129.88,138.0999]
[1742242161888,0.0001,129.89,129.87,138.1299]
[1742242167159,12.60794716,129.88,129.87,138.1299]
[1742242168488,20.30734716,129.88,129.87,138.1299]
[1742242169096,7.6994,129.88,129.87,138.1299]
[1742242171997,20.30734716,129.88,129.87,0.03]
[1742242173901,27.08734716,129.88,129.87,0.03]
[1742242174196,27.65599344,129.88,129.87,0.03]
[1742242174502,29.18769344,129.88,129.87,0.03]
[1742242175877,28.61904716,129.88,129.87,0.03]
[1742242176698,19.38794716,129.88,129.87,0.03]
[1742242177898,27.08734716,129.88,129.87,0.03]
[1742242178304,20.30734716,129.88,129.87,0.03]
[1742242179394,0.0001,129.89,129.87,0.03]
[1742242181136,12.60804716,129.89,129.87,0.03]
[1742242181275,19.38794716,129.88,129.87,0.03]
[1742242181973,19.6722703,129.88,129.87,0.03]
[1742242182868,33.6160703,129.88,129.87,0.03]
[1742242184200,19.38794716,129.88,129.87,0.03]
[1742242184496,6.78,129.88,129.87,0.03]
[1742242184691,19.38794716,129.88,129.87,0.03]
[1742242184898,20.30734716,129.88,129.87,0.03]
[1742242186607,20.5916703,129.88,129.87,0.03]
[1742242186795,20.87599344,129.88,129.87,0.03]
[1742242190102,0.0001,129.89,129.87,0.03]
[1742242191012,0.0001,129.89,129.87,12.63794716]
[1742242191982,0.0001,129.89,129.87,0.03]
[1742242192182,0.0001,129.89,129.87,12.63794716]
[1742242193211,0.0001,129.89,129.87,0.03]
[1742242194704,19.65596493,129.88,129.87,0.03]
[1742242195011,19.65606493,129.89,129.87,0.03]
[1742242196129,26.43596493,129.88,129.87,0.03]
[1742242197013,0.0001,129.89,129.87,0.03]
[1742242198803,19.65606493,129.89,129.87,0.03]
[1742242200601,19.65596493,129.88,129.87,0.03]
[1742242201923,19.65606493,129.89,129.87,0.03]
[1742242202295,19.65596493,129.88,129.87,0.03]
[1742242203913,27.35536493,129.88,129.87,0.03]
[1742242205120,0.0001,129.89,129.87,0.03]
[1742242207121,0.0001,129.89,129.87,157.78586493]
[1742242208225,0.0001,129.89,129.87,145.8296]
[1742242209030,0.0001,129.89,129.88,18.64964886]
[1742242209200,0.0001,129.89,129.88,38.30561379]
[1742242209409,0.0001,129.89,129.88,18.64964886]
[1742242210316,0.0001,129.89,129.88,26.34904886]
[1742242210904,0.0001,129.89,129.88,46.00501379]
[1742242213134,0.0001,129.89,129.88,38.92618397]
[1742242213727,0.0001,129.89,129.88,177.02608397]
[1742242215521,0.0001,129.89,129.88,179.12683025]
[1742242216237,0.063,129.91,129.9,156.970772]
[1742242216422,0.063,129.91,129.9,176.18574554]
[1742242216730,0.063,129.91,129.9,176.32790711]
[1742242216936,0.063,129.91,129.9,184.02610711]
[1742242217237,0.063,129.92,129.91,18.933972]
[1742242217532,0.063,129.92,129.91,169.54790711]
[1742242218534,0.063,129.92,129.91,169.83223025]
[1742242218743,20.0,129.95,129.94,51.22678397]
[1742242218937,20.0,129.95,129.94,196.95938397]
[1742242219110,20.0,129.95,129.94,204.01235503]
[1742242221329,0.063,129.97,129.96,18.933972]
[1742242221538,0.063,129.97,129.96,38.56407817]
[1742242221841,0.063,129.97,129.96,18.64964886]
[1742242224138,0.063,129.97,129.96,45.97435503]
[1742242225140,0.063,129.97,129.96,38.27975503]
[1742242225542,0.063,129.97,129.96,156.31655503]
[1742242226160,0.063,129.97,129.96,136.68644886]
[1742242226943,0.063,129.97,129.94,138.0368]
[1742242227246,0.063,129.97,129.94,145.7325]
[1742242228243,0.063,129.97,129.94,138.0368]
[1742242228408,0.063,129.97,129.94,157.66690617]
[1742242228616,0.063,129.97,129.94,165.36270617]
[1742242234943,0.063,129.97,129.95,38.27975503]
[1742242235345,0.063,129.97,129.96,38.27975503]
[1742242236223,0.063,129.97,129.96,45.97435503]
[1742242236553,0.063,129.97,129.96,164.29547817]
[1742242238852,0.063,129.97,129.96,476.29547817]
[1742242239228,0.063,129.97,129.96,469.22305997]
[1742242239925,0.063,129.97,129.96,468.93873683]
[1742242240326,0.063,129.97,129.96,469.22305997]
[1742242242254,0.063,129.97,129.96,469.50738311]
[1742242242457,0.063,130.0,129.99,20.0]
[1742242242752,0.063,130.0,129.99,176.28845997]
[1742242243128,0.063,130.02,129.99,176.57278311]
[1742242243325,0.063,130.02,130.01,31.49165997]
[1742242244326,0.063,130.02,130.01,39.18335997]
[1742242245548,0.063,130.02,130.01,351.18335997]
[1742242249029,0.063,130.02,130.01,469.50448311]
[1742242249954,0.063,130.03,130.02,31.49165997]
[1742242250252,0.063,130.03,130.02,157.21955997]
[1742242250648,0.063,130.03,130.02,144.37754886]
[1742242253546,0.063,130.03,130.02,156.93523683]
[1742242254851,0.063,130.03,130.02,157.21955997]
[1742242257155,0.0001,130.03,130.02,157.50388311]
[1742242257456,0.0001,130.03,130.02,157.36172154]
[1742242257837,0.0001,130.03,130.02,157.50388311]
[1742242258034,0.0001,130.03,130.02,456.37754886]
[1742242258262,0.0001,130.03,130.02,156.93523683]
[1742242262867,0.0001,130.03,130.02,118.0368]
[1742242263365,0.0001,130.03,130.0,38.89913683]
[1742242263366,0.0001,130.03,130.01,118.0368]
[1742242264242,0.0001,130.03,130.0,136.68644886]
[1742242265843,0.0001,130.03,130.0,144.37864886]
[1742242267486,0.0001,130.03,130.0,156.93633683]
[1742242267774,0.0001,130.03,130.0,144.37864886]
[1742242269478,0.0001,130.03,130.0,26.34184886]
[1742242269972,0.0001,130.03,130.0,38.89953683]
[1742242273373,0.0001,130.03,130.0,26.34184886]
[1742242275388,0.0001,130.03,130.0,164.44184886]
[1742242276385,12.55768797,130.02,130.0,138.163]
[1742242277282,12.55768797,130.02,130.0,0.063]
[1742242278274,20.24878797,130.02,130.0,0.063]
[1742242280684,20.28928797,130.01,130.0,0.063]
[1742242282592,27.98098797,130.01,130.0,0.063]
[1742242283087,28.12314954,130.01,130.0,0.063]
[1742242283265,28.26531111,130.01,130.0,0.063]
[1742242283966,27.98098797,130.01,130.0,0.063]
[1742242288684,28.26531111,130.01,130.0,0.063]
[1742242290902,28.12314954,130.01,130.0,0.063]
[1742242291898,0.28432314,130.0,129.95,138.1]
[1742242292083,12.55768797,129.96,129.94,7.7258]
[1742242292287,12.55768797,129.96,129.94,0.03]
[1742242293740,12.55768797,129.97,129.94,0.03]
[1742242294699,12.55768797,129.96,129.94,0.03]
[1742242295501,12.55768797,129.97,129.94,0.03]
[1742242295688,20.25188797,129.97,129.94,0.03]
[1742242297001,12.55768797,129.96,129.94,0.03]
[1742242297794,12.55768797,129.95,129.94,0.03]
[1742242299403,20.25288797,129.95,129.94,0.03]
[1742242299701,12.55768797,129.95,129.94,0.03]
[1742242300611,6.76,129.99,129.94,0.03]
[1742242300786,12.55768797,129.97,129.94,0.03]
[1742242301901,12.55768797,129.96,129.94,0.03]
[1742242305303,12.55768797,129.97,129.94,0.03]
[1742242306609,12.55768797,129.97,129.93,7.2264]
[1742242307107,12.55768797,129.96,129.93,7.2264]
[1742242307602,12.55768797,129.95,129.92,7.6968]
[1742242310811,12.55768797,129.95,129.91,138.1]
[1742242310812,12.55768797,129.94,129.91,138.1]
[1742242311126,12.55768797,129.94,129.9,145.7979]
[1742242311412,12.55768797,129.94,129.91,0.03]
[1742242312017,20.25358797,129.94,129.91,0.03]
[1742242312218,12.55768797,129.94,129.91,0.03]
[1742242313585,12.55768797,129.93,129.91,0.03]
[1742242317296,12.55768797,129.94,129.91,0.03]
[1742242317918,6.76,129.95,129.91,12.58768797]
[1742242318108,6.76,129.95,129.92,7.697]
[1742242318510,6.76,129.95,129.92,20.25468797]
[1742242318727,6.76,129.95,129.92,7.697]
[1742242320121,19.31768797,129.95,129.92,7.697]
[1742242321314,19.31768797,129.95,129.91,7.7273]
[1742242322004,27.01298797,129.95,129.91,7.7273]
[1742242322715,12.55768797,129.94,129.91,7.7273]
[1742242323600,19.31768797,129.95,129.91,7.7273]
[1742242324806,27.01298797,129.95,129.91,7.7273]
[1742242325791,12.55768797,129.94,129.91,0.03]
[1742242326829,20.25388797,129.94,129.91,0.03]
[1742242327127,12.55768797,129.93,129.91,0.03]
[1742242330223,20.25438797,129.93,129.91,0.03]
[1742242330527,12.55768797,129.92,129.91,0.03]
[1742242332723,20.25468797,129.92,129.91,0.03]
[1742242339541,12.55768797,129.92,129.91,0.03]
[1742242339741,20.25468797,129.92,129.91,0.03]
[1742242341235,0.28432314,129.93,129.91,0.03]
[1742242341441,12.55768797,129.92,129.91,0.03]
[1742242342126,12.55768797,129.93,129.91,0.03]
[1742242342333,12.55768797,129.92,129.91,0.03]
[1742242343040,7.6958,129.94,129.88,12.11768797]
[1742242343248,12.55768797,129.93,129.89,7.6988]
[1742242344127,20.25428797,129.93,129.89,7.6988]
[1742242344449,12.55768797,129.92,129.89,7.6988]
[1742242346746,12.55768797,129.92,129.88,7.6994]
[1742242348050,20.25478797,129.92,129.88,7.6994]
[1742242348252,20.25478797,129.92,129.88,0.03]
[1742242353784,12.55768797,129.92,129.88,0.03]
[1742242360169,12.62068797,129.92,129.88,0.03]
[1742242366450,12.55768797,129.91,129.88,0.03]
[1742242367368,20.25548797,129.91,129.88,0.03]
[1742242367968,12.55768797,129.91,129.88,0.03]
[1742242368350,12.55768797,129.9,129.88,0.03]
[1742242370662,12.62068797,129.92,129.88,0.03]
[1742242371371,20.31768797,129.92,129.88,0.03]
[1742242372771,12.55768797,129.89,129.88,0.03]
[1742242374374,20.25648797,129.89,129.88,0.03]
[1742242376972,27.30081111,129.89,129.88,0.03]
[1742242379478,0.28432314,129.88,129.87,0.03]
[1742242379776,12.55768797,129.83,129.81,0.03]
[1742242380673,12.55768797,129.82,129.81,0.03]
[1742242380853,12.55768797,129.83,129.81,0.03]
[1742242382376,12.55768797,129.82,129.81,0.03]
[1742242388283,12.55768797,129.83,129.81,0.03]
[1742242391878,12.55768797,129.84,129.81,0.03]
[1742242392090,19.31768797,129.85,129.81,0.03]
[1742242392379,27.01898797,129.85,129.81,0.03]
[1742242392783,19.31768797,129.85,129.81,0.03]
[1742242393177,27.01878797,129.85,129.81,0.03]
[1742242393480,27.01878797,129.85,129.81,7.7335]
[1742242395287,12.55768797,129.84,129.81,0.03]
[1742242396082,19.31768797,129.85,129.81,0.03]
[1742242397783,6.76,129.85,129.81,31.23733683]
[1742242399086,0.063,129.87,129.83,12.55768797]
[1742242399265,12.62068797,129.87,129.83,20.25978797]
[1742242399663,12.62068797,129.87,129.83,7.7021]
[1742242400194,12.55768797,129.86,129.83,7.7021]
[1742242402695,7.7631,129.87,129.83,7.7021]
[1742242402997,20.32078797,129.87,129.83,7.7021]
[1742242403592,12.55768797,129.86,129.81,177.04043683]
[1742242403896,12.55768797,129.85,129.81,164.48274886]
[1742242404394,12.55768797,129.85,129.81,26.38274886]
[1742242404789,20.25908797,129.85,129.81,18.67964886]
[1742242404994,12.55768797,129.84,129.81,0.03]
[1742242405370,12.55768797,129.84,129.81,7.7335]
[1742242410196,12.55768797,129.84,129.81,0.03]
[1742242413298,20.25908797,129.85,129.81,0.03]
[1742242417399,20.25848797,129.86,129.81,12.58768797]
[1742242417701,12.55768797,129.85,129.81,0.03]
[1742242418495,20.25898797,129.85,129.81,0.03]
[1742242418695,12.55768797,129.85,129.81,12.58768797]
[1742242419995,12.55768797,129.86,129.82,18.64964886]
[1742242420503,12.55768797,129.86,129.82,26.35214886]
[1742242420700,12.55768797,129.85,129.82,7.7025]
[1742242421003,12.55768797,129.85,129.81,20.29088797]
[1742242421206,12.55768797,129.85,129.81,7.7332]
[1742242423483,20.25898797,129.85,129.81,7.7332]
[1742242424579,12.55768797,129.84,129.81,0.03]
[1742242425489,20.25898797,129.85,129.81,0.03]
[1742242425989,12.55768797,129.85,129.81,0.03]
[1742242426495,32.84201111,129.82,129.81,0.03]
[1742242426813,0.28432314,129.81,129.79,0.03]
[1742242427010,12.55768797,129.8,129.79,0.03]
[1742242428216,20.26178797,129.8,129.79,0.03]
[1742242430296,27.00178797,129.8,129.79,0.03]
[1742242433213,27.28611111,129.8,129.79,0.03]
[1742242436118,27.57043425,129.8,129.79,0.03]
[1742242436804,0.28432314,129.79,129.78,0.03]
[1742242437008,63.07276299,129.79,129.78,0.03]
[1742242438324,70.77746299,129.79,129.78,0.03]
[1742242439717,0.28432314,129.78,129.75,0.03]
[1742242439923,12.55768797,129.76,129.75,0.03]
[1742242440099,19.29768797,129.76,129.75,0.03]
[1742242442016,27.00418797,129.76,129.75,0.03]
[1742242442722,19.29768797,129.76,129.75,0.03]
[1742242451736,27.00418797,129.76,129.75,0.03]
[1742242453735,20.26418797,129.76,129.75,0.03]
[1742242462853,20.26418797,129.76,129.75,0.03]
[1742242467648,12.55768797,129.76,129.75,0.03]
[1742242469356,20.26418797,129.76,129.75,0.03]
[1742242473161,20.54851111,129.76,129.75,0.03]
[1742242473868,20.83283425,129.76,129.75,0.03]
[1742242481771,20.54851111,129.76,129.75,0.03]
[1742242489562,20.83283425,129.76,129.75,0.03]
[1742242490052,22.90028858,129.76,129.75,0.03]
[1742242490252,31.1256149,129.76,129.75,0.03]
[1742242490650,31.1256149,129.76,129.74,0.03]
[1742242490651,0.28432314,129.75,129.74,0.03]
[1742242490873,12.84201111,129.75,129.74,0.03]
[1742242491784,20.54911111,129.75,129.74,0.03]
[1742242492367,20.0,129.72,129.71,0.03]
[1742242492568,39.29768797,129.72,129.71,0.03]
[1742242493673,47.00658797,129.72,129.71,0.03]
[1742242495791,47.29091111,129.72,129.71,0.03]
[1742242498191,97.80598613,129.72,129.71,0.03]
[1742242500204,108.09876678,129.72,129.71,0.03]
[1742242500504,0.56864628,129.71,129.69,0.03]
[1742242500709,12.84201111,129.7,129.69,0.03]
[1742242501704,20.55211111,129.7,129.69,0.03]
[1742242502005,20.83643425,129.7,129.69,0.0001]
[1742242502209,31.1292149,129.7,129.69,0.0001]
[1742242503410,20.28432314,129.67,129.66,0.03]
[1742242503708,39.58201111,129.67,129.66,0.03]
[1742242503936,68.80876376,129.67,129.66,0.03]
[1742242504309,19.21829514,129.66,129.62,0.03]
[1742242504511,12.84201111,129.63,129.62,0.03]
[1742242504689,19.58201111,129.63,129.62,0.03]
[1742242504891,27.29621111,129.63,129.62,0.03]
[1742242505285,19.58201111,129.63,129.62,0.03]
[1742242505715,19.43984954,129.63,129.62,0.03]
[1742242506006,19.58201111,129.63,129.62,0.03]
[1742242506416,27.58053425,129.63,129.62,0.03]
[1742242507192,19.86633425,129.63,129.62,0.03]
[1742242507587,19.58201111,129.63,129.62,0.03]
[1742242509100,12.55768797,129.64,129.62,0.03]
[1742242509294,19.29768797,129.65,129.62,0.03]
[1742242509691,6.74,129.65,129.62,0.03]
[1742242511218,6.74,129.65,129.62,7.7448]
[1742242513604,19.29768797,129.65,129.62,7.7448]
[1742242514715,6.74,129.65,129.62,7.7448]
[1742242515399,19.29768797,129.65,129.62,7.7448]
[1742242516830,12.84201111,129.63,129.62,0.03]
[1742242517898,20.55621111,129.63,129.62,0.03]
[1742242518828,12.84201111,129.63,129.62,0.03]
[1742242519819,20.55621111,129.63,129.62,0.03]
[1742242520409,12.84201111,129.63,129.62,0.03]
[1742242521326,12.55768797,129.64,129.62,0.03]
[1742242521530,6.74,129.64,129.62,0.03]
[1742242522827,19.29768797,129.64,129.62,0.03]
[1742242524431,6.74,129.64,129.62,0.03]
[1742242525533,12.69984954,129.66,129.62,0.03]
[1742242525726,19.43984954,129.66,129.62,0.03]
[1742242526228,19.50284954,129.66,129.62,0.03]
[1742242526453,19.50284954,129.66,129.62,7.7448]
[1742242526832,6.803,129.66,129.62,39.58958797]
[1742242527524,6.803,129.66,129.62,27.0319]
[1742242527836,6.803,129.66,129.62,39.58958797]
[1742242529232,19.36068797,129.66,129.62,7.7448]
[1742242531742,12.84201111,129.65,129.62,0.03]
[1742242531944,12.55768797,129.64,129.62,0.03]
[1742242534306,12.55768797,129.65,129.62,0.03]
[1742242534511,6.803,129.66,129.62,12.58768797]
[1742242534926,19.36068797,129.66,129.62,0.03]
[1742242536230,12.62068797,129.66,129.62,7.7448]
[1742242536422,19.36068797,129.66,129.62,7.7448]
[1742242540916,12.62068797,129.66,129.62,7.7448]
[1742242541127,19.36068797,129.66,129.62,7.7448]
[1742242541524,19.36068797,129.66,129.63,14.22088797]
[1742242541525,0.063,129.66,129.63,14.22088797]
[1742242542429,0.063,129.66,129.64,12.55768797]
[1742242543034,0.063,129.66,129.65,7.713]
[1742242543236,0.063,129.66,129.65,20.27068797]
[1742242546534,0.063,129.66,129.65,7.713]
[1742242546742,0.063,129.66,129.65,20.27068797]
[1742242546952,0.063,129.66,129.65,38.92033683]
[1742242547545,0.063,129.66,129.65,12.55768797]
[1742242548739,0.063,129.66,129.65,20.27068797]
[1742242548979,0.063,129.66,129.65,12.55768797]
[1742242549147,0.063,129.66,129.64,12.55768797]
[1742242550627,0.063,129.66,129.64,20.27108797]
[1742242552058,0.063,129.66,129.65,20.27068797]
[1742242552260,0.063,129.66,129.65,38.92033683]
[1742242553764,0.063,129.72,129.65,58.48725997]
[1742242553952,0.063,129.72,129.7,12.55768797]
[1742242554263,0.063,129.72,129.68,20.26888797]
[1742242555352,12.62068797,129.72,129.68,20.26888797]
[1742242555549,20.32958797,129.72,129.68,12.55768797]
[1742242555754,12.55768797,129.71,129.66,28.35708797]
[1742242556055,12.55768797,129.71,129.66,21.80748797]
[1742242556754,12.55768797,129.71,129.67,12.55768797]
[1742242557059,7.7096,129.71,129.67,12.55768797]
[1742242557957,7.7096,129.71,129.67,20.26928797]
[1742242558160,7.7096,129.71,129.67,7.7116]
[1742242558364,7.7096,129.71,129.67,20.26928797]
[1742242558559,7.7096,129.71,129.67,12.55768797]
[1742242558861,12.62068797,129.72,129.67,7.55768797]
[1742242558862,20.32968797,129.72,129.67,7.55768797]
[1742242559363,20.32968797,129.72,129.67,2.55768797]
[1742242559952,7.7101,129.7,129.66,14.09528797]
[1742242560151,7.7101,129.7,129.66,12.55768797]
[1742242560958,7.7101,129.7,129.67,12.55768797]
[1742242561155,20.33028797,129.71,129.67,12.55768797]
[1742242561356,0.063,129.71,129.69,12.55768797]
[1742242562345,12.55768797,129.7,129.66,150.65768797]
[1742242562569,0.063,129.71,129.68,0.14216157]
[1742242562763,0.063,129.71,129.7,31.49165997]
[1742242562955,0.063,129.71,129.7,178.12928311]
[1742242563667,0.063,129.71,129.7,228.36003499]
[1742242564466,0.063,129.71,129.7,236.07013499]
[1742242564673,0.063,129.72,129.71,18.933972]
[1742242564974,0.063,129.72,129.71,81.72241185]
[1742242565270,0.063,129.72,129.71,83.26355681]
[1742242565666,0.063,129.72,129.71,395.26355681]
[1742242565845,0.063,129.72,129.71,394.00673499]
[1742242566051,0.063,129.78,129.76,12.55768797]
[1742242566251,0.063,129.78,129.75,12.55768797]
[1742242566463,0.063,129.78,129.72,7.7083]
[1742242566669,0.063,129.78,129.74,12.55768797]
[1742242567569,0.063,129.78,129.75,12.55768797]
[1742242569779,0.063,129.78,129.76,12.55768797]
[1742242569988,0.063,129.78,129.75,12.55768797]
[1742242570283,0.063,129.78,129.74,33.09724886]
[1742242570466,0.063,129.78,129.74,37.94733683]
[1742242571464,0.063,129.78,129.74,25.38964886]
[1742242571755,12.62068797,129.78,129.73,12.55768797]
[1742242571963,12.62068797,129.78,129.73,20.26578797]
[1742242573676,0.063,129.78,129.75,12.55768797]
[1742242573882,0.063,129.78,129.76,12.55768797]
[1742242574682,0.063,129.78,129.77,12.55768797]
[1742242575067,0.063,129.78,129.77,20.26358797]
[1742242575472,0.063,129.78,129.77,38.91323683]
[1742242577859,0.063,129.78,129.77,177.29755997]
[1742242583470,0.063,129.78,129.77,177.58188311]
[1742242584071,0.063,129.78,129.77,489.58188311]
[1742242585492,0.0001,129.78,129.77,489.58188311]
[1742242587693,0.0001,129.79,129.78,18.933972]
[1742242587895,0.0001,129.79,129.78,221.64694006]
[1742242588096,0.063,129.83,129.82,31.20733683]
[1742242588266,0.063,129.83,129.82,169.59165997]
[1742242589377,0.063,129.84,129.83,0.28432314]
[1742242589572,0.063,129.84,129.83,39.19395997]
[1742242589772,0.063,129.84,129.83,26.35194886]
[1742242590490,0.063,129.84,129.81,6.72]
[1742242590675,0.063,129.84,129.81,18.64964886]
[1742242590873,12.62068797,129.84,129.81,18.64964886]
[1742242591177,12.55768797,129.83,129.8,18.64964886]
[1742242591380,12.55768797,129.83,129.79,18.64964886]
[1742242591771,20.26008797,129.83,129.79,18.64964886]
[1742242592176,12.55768797,129.83,129.79,18.64964886]
[1742242592377,12.55768797,129.83,129.79,31.20733683]
[1742242593195,12.62068797,129.84,129.79,38.91203683]
[1742242594022,20.32248797,129.84,129.79,38.91203683]
[1742242595496,12.62068797,129.84,129.79,38.91203683]
[1742242595696,20.32248797,129.84,129.79,38.91203683]
[1742242595872,12.55768797,129.83,129.79,26.35434886]
[1742242596077,12.55768797,129.81,129.77,18.64964886]
[1742242597093,12.55768797,129.82,129.77,31.20733683]
[1742242597692,20.26118797,129.82,129.77,38.91303683]
[1742242598393,9.205,129.83,129.77,38.91303683]
[1742242598596,12.55768797,129.82,129.77,38.91303683]
[1742242599013,9.205,129.83,129.77,38.91303683]
[1742242599201,12.55768797,129.82,129.77,38.91303683]
[1742242599404,19.27768797,129.82,129.77,31.20733683]
[1742242599698,7.7041,129.8,129.76,158.36418797]
[1742242600006,7.7041,129.8,129.76,20.26418797]
[1742242600306,7.7041,129.8,129.76,7.7065]
[1742242600507,20.26148797,129.81,129.76,20.26418797]
[1742242600819,12.55768797,129.81,129.77,12.55768797]
[1742242601405,19.27768797,129.82,129.77,31.20733683]
[1742242601586,19.27768797,129.82,129.76,26.9728]
[1742242601587,6.72,129.82,129.78,12.55768797]
[1742242601782,6.72,129.82,129.79,7.7047]
[1742242601995,6.72,129.82,129.79,20.26238797]
[1742242602801,1.5024,129.83,129.79,20.26238797]
[1742242606591,9.2048,129.83,129.79,20.26238797]
[1742242606898,1.5024,129.83,129.79,20.26238797]
[1742242608513,12.55768797,129.82,129.78,7.7352]
[1742242611424,1.5024,129.83,129.8,20.26148797]
[1742242614927,1.5024,129.83,129.8,7.7038]
[1742242615127,1.5024,129.83,129.78,0.03]
[1742242615128,6.62342314,129.8,129.78,0.03]
[1742242615441,12.55768797,129.79,129.78,0.03]
[1742242615830,13.0591,129.8,129.78,7.7352]
[1742242616840,25.61678797,129.8,129.78,0.03]
[1742242617647,12.55768797,129.79,129.78,0.03]
[1742242618736,12.84201111,129.79,129.78,0.03]
[1742242618950,20.54671111,129.79,129.78,0.03]
[1742242619357,22.10301111,129.79,129.78,0.03]
[1742242620728,14.39831111,129.79,129.78,0.03]
[1742242621335,22.10301111,129.79,129.78,0.03]
[1742242622641,72.61808613,129.79,129.78,0.03]
[1742242622847,20.0,129.76,129.72,0.03]
[1742242623150,14.35831111,129.73,129.72,0.03]
[1742242624431,22.06661111,129.73,129.72,0.03]
[1742242629042,22.35093425,129.73,129.72,0.03]
[1742242630557,14.35831111,129.73,129.72,0.03]
[1742242631958,22.06661111,129.73,129.72,0.03]
[1742242634157,14.35831111,129.73,129.72,0.03]
[1742242634568,22.06661111,129.73,129.72,0.03]
[1742242635167,22.35093425,129.73,129.72,0.03]
[1742242635364,0.28432314,129.76,129.72,0.03]
[1742242635544,19.27768797,129.75,129.72,0.03]
[1742242635939,12.55768797,129.75,129.72,0.03]
[1742242636165,12.55768797,129.76,129.72,0.03]
[1742242636366,19.27768797,129.76,129.72,0.03]
[1742242636742,6.72,129.76,129.72,12.58768797]
[1742242636959,6.72,129.76,129.72,20.29628797]
[1742242637671,14.17598797,129.77,129.72,20.29628797]
[1742242637973,19.27768797,129.77,129.72,20.29628797]
[1742242640858,12.55768797,129.79,129.74,12.55768797]
[1742242641165,12.55768797,129.79,129.78,7.7053]
[1742242641166,0.063,129.79,129.78,7.7053]
[1742242641570,0.063,129.79,129.78,20.26298797]
[1742242642153,0.063,129.79,129.78,7.7053]
[1742242642852,0.063,129.79,129.75,38.91413683]
[1742242644093,0.063,129.79,129.76,20.26418797]
[1742242644680,0.063,129.79,129.76,12.55768797]
[1742242645575,12.62068797,129.79,129.74,14.10458797]
[1742242646975,12.62068797,129.79,129.74,21.81218797]
[1742242647150,0.063,129.79,129.75,12.55768797]
[1742242647353,0.063,129.79,129.76,12.55768797]
[1742242647551,0.063,129.79,129.74,9.2545]
[1742242647774,0.063,129.79,129.75,12.55768797]
[1742242649672,0.063,129.79,129.74,14.10458797]
[1742242649673,0.34732314,129.79,129.74,14.10458797]
[1742242649851,0.34732314,129.79,129.74,12.55768797]
[1742242650051,12.90501111,129.79,129.74,12.55768797]
[1742242650275,7.06732314,129.79,129.74,12.55768797]
[1742242650472,6.783,129.79,129.76,12.55768797]
[1742242650779,6.783,129.79,129.75,12.55768797]
[1742242651772,14.4878,129.79,129.75,12.55768797]
[1742242651987,14.4878,129.79,129.74,7.7074]
[1742242652165,6.783,129.79,129.75,12.55768797]
[1742242653879,14.4878,129.79,129.75,12.55768797]
[1742242654857,12.55768797,129.78,129.73,12.55768797]
[1742242655078,12.55768797,129.76,129.72,0.03]